[Event "Open Gent FIDE-rated 2023"]
[Site "Gent, Belgium"]
[Date "2023.07.15"]
[Round "1.1"]
[White "Bernaert, Michael"]
[Black "Ikonnikov, Vyacheslav"]
[Result "0-1"]
[TimeControl "90'+30''"]
[BlackTitle "GM"]
[WhiteElo "1745"]
[BlackElo "2467"]

1. e4 {[%clk 01:28:39]} {[%emt 00:02:21]} c5 {[%clk 01:30:43]} {[%emt
00:00:17]} 2. Nf3 {[%clk 01:28:57]} {[%emt 00:00:13]} a6 {[%clk 01:30:52]}
{[%emt 00:00:22]} 3. d4 {[%clk 01:29:15]} {[%emt 00:00:12]} cxd4 {[%clk
01:31:07]} {[%emt 00:00:14]} 4. Nxd4 {[%clk 01:29:40]} {[%emt 00:00:05]} e5
{[%clk 01:31:09]} {[%emt 00:00:28]} 5. Nb3 {[%clk 01:29:55]} {[%emt 00:00:14]}
Nc6 {[%clk 01:30:49]} {[%emt 00:00:50]} 6. a3 {[%clk 01:26:33]} {[%emt
00:03:53]} Be7 {[%clk 01:27:22]} {[%emt 00:03:56]} 7. Nc3 {[%clk 01:25:17]}
{[%emt 00:01:46]} Nf6 {[%clk 01:27:36]} {[%emt 00:00:16]} 8. f3 {[%clk
01:22:21]} {[%emt 00:03:26]} d6 {[%clk 01:22:28]} {[%emt 00:05:38]} 9. Be3
{[%clk 01:21:13]} {[%emt 00:01:38]} O-O {[%clk 01:20:18]} {[%emt 00:02:40]} 10.
Qd2 {[%clk 01:21:01]} {[%emt 00:00:43]} a5 {[%clk 01:17:44]} {[%emt 00:03:04]}
11. Bb5 {[%clk 01:14:16]} {[%emt 00:07:15]} Be6 {[%clk 01:16:41]} {[%emt
00:01:31]} 12. O-O-O {[%clk 01:06:05]} {[%emt 00:08:42]} Na7 {[%clk 01:11:42]}
{[%emt 00:05:28]} 13. Qf2 {[%clk 00:56:57]} {[%emt 00:09:38]} Nxb5 {[%clk
01:06:03]} {[%emt 00:06:09]} 14. Nxb5 {[%clk 00:56:22]} {[%emt 00:01:06]} Qc8
{[%clk 00:52:48]} {[%emt 00:13:45]} 15. Kb1 {[%clk 00:41:57]} {[%emt 00:14:56]}
a4 {[%clk 00:52:53]} {[%emt 00:00:24]} 16. Nc1 {[%clk 00:41:11]} {[%emt
00:01:15]} d5 {[%clk 00:53:12]} {[%emt 00:00:11]} 17. exd5 {[%clk 00:36:01]}
{[%emt 00:05:41]} Nxd5 {[%clk 00:53:29]} {[%emt 00:00:12]} 18. Rd3 {[%clk
00:29:25]} {[%emt 00:07:06]} Rd8 {[%clk 00:33:20]} {[%emt 00:20:39]} 19. Qd2
{[%clk 00:23:35]} {[%emt 00:06:20]} Bf5 {[%clk 00:31:46]} {[%emt 00:02:03]} 20.
Ka1 {[%clk 00:12:36]} {[%emt 00:11:29]} Bxd3 {[%clk 00:29:05]} {[%emt
00:03:11]} 21. Nxd3 {[%clk 00:12:24]} {[%emt 00:00:41]} Nxe3 {[%clk 00:26:44]}
{[%emt 00:02:51]} 22. Qxe3 {[%clk 00:12:20]} {[%emt 00:00:34]} Qxc2 {[%clk
00:27:06]} {[%emt 00:00:08]} 23. Nxe5 {[%clk 00:08:44]} {[%emt 00:04:06]} Rd1+
{[%clk 00:27:23]} {[%emt 00:00:13]} 24. Rxd1 {[%clk 00:07:17]} {[%emt
00:01:58]} Qxd1+ {[%clk 00:27:47]} {[%emt 00:00:06]} 25. Ka2 {[%clk 00:07:44]}
{[%emt 00:00:03]} Qd5+ {[%clk 00:28:11]} {[%emt 00:00:06]} 26. Kb1 {[%clk
00:03:55]} {[%emt 00:04:20]} Qxb5 {[%clk 00:28:17]} {[%emt 00:00:23]} 0-1

[Event "Open Gent FIDE-rated 2023"]
[Site "Gent, Belgium"]
[Date "2023.07.15"]
[Round "1.2"]
[White "Goudriaan, Etienne"]
[Black "Meruma, Arie"]
[Result "1-0"]
[TimeControl "90'+30''"]
[WhiteTitle "IM"]
[WhiteElo "2322"]
[BlackElo "1743"]

1. d4 {[%clk 01:30:58]} {[%emt 00:00:09]} Nf6 {[%clk 01:30:44]} {[%emt
00:00:17]} 2. c4 {[%clk 01:31:16]} {[%emt 00:00:13]} g6 {[%clk 01:30:38]}
{[%emt 00:00:35]} 3. Nc3 {[%clk 01:31:01]} {[%emt 00:00:45]} Bg7 {[%clk
01:30:51]} {[%emt 00:00:17]} 4. g3 {[%clk 01:31:20]} {[%emt 00:00:12]} O-O
{[%clk 01:30:34]} {[%emt 00:00:46]} 5. Bg2 {[%clk 01:31:48]} {[%emt 00:00:03]}
d6 {[%clk 01:29:50]} {[%emt 00:01:15]} 6. Nf3 {[%clk 01:32:14]} {[%emt
00:00:04]} a5 {[%clk 01:27:57]} {[%emt 00:02:24]} 7. O-O {[%clk 01:31:41]}
{[%emt 00:01:02]} Na6 {[%clk 01:25:03]} {[%emt 00:03:24]} 8. h3 {[%clk
01:30:20]} {[%emt 00:01:50]} h5 {[%clk 01:23:19]} {[%emt 00:02:15]} 9. e4
{[%clk 01:28:57]} {[%emt 00:01:52]} c5 {[%clk 01:19:20]} {[%emt 00:04:29]} 10.
d5 {[%clk 01:28:57]} {[%emt 00:01:12]} Re8 {[%clk 01:16:52]} {[%emt 00:02:58]}
11. Bf4 {[%clk 01:27:31]} {[%emt 00:01:57]} Rb8 {[%clk 01:10:10]} {[%emt
00:07:09]} 12. e5 {[%clk 01:25:17]} {[%emt 00:02:46]} Nh7 {[%clk 01:07:13]}
{[%emt 00:03:26]} 13. Re1 {[%clk 01:25:13]} {[%emt 00:00:34]} Nc7 {[%clk
01:07:12]} {[%emt 00:00:32]} 14. a4 {[%clk 01:22:28]} {[%emt 00:03:15]} Bf5
{[%clk 01:02:14]} {[%emt 00:05:28]} 15. Nh4 {[%clk 01:18:05]} {[%emt 00:04:52]}
dxe5 {[%clk 00:55:24]} {[%emt 00:07:21]} 16. Bxe5 {[%clk 01:16:08]} {[%emt
00:02:27]} Bxe5 {[%clk 00:55:25]} {[%emt 00:00:29]} 17. Rxe5 {[%clk 01:16:36]}
{[%emt 00:00:02]} Bd7 {[%clk 00:52:49]} {[%emt 00:03:06]} 18. Qd3 {[%clk
01:11:58]} {[%emt 00:05:08]} Kg7 {[%clk 00:50:23]} {[%emt 00:02:56]} 19. Rae1
{[%clk 01:11:06]} {[%emt 00:01:22]} e6 {[%clk 00:47:45]} {[%emt 00:03:08]} 20.
d6 {[%clk 01:07:25]} {[%emt 00:04:10]} Na6 {[%clk 00:46:53]} {[%emt 00:01:22]}
21. Ne4 {[%clk 01:02:40]} {[%emt 00:05:15]} f6 {[%clk 00:45:50]} {[%emt
00:01:34]} 22. Nxc5 {[%clk 01:00:56]} {[%emt 00:02:14]} f5 {[%clk 00:39:29]}
{[%emt 00:06:51]} 23. Nxe6+ {[%clk 01:00:51]} {[%emt 00:00:35]} Bxe6 {[%clk
00:36:49]} {[%emt 00:03:03]} 24. Rxe6 {[%clk 01:01:10]} {[%emt 00:00:17]} Rxe6
{[%clk 00:36:56]} {[%emt 00:00:24]} 25. Rxe6 {[%clk 01:01:34]} {[%emt
00:00:06]} Nf6 {[%clk 00:37:17]} {[%emt 00:00:08]} 26. Re7+ {[%clk 01:01:12]}
{[%emt 00:00:52]} 1-0

[Event "Open Gent FIDE-rated 2023"]
[Site "Gent, Belgium"]
[Date "2023.07.15"]
[Round "1.3"]
[White "Vanlommel, Maxim"]
[Black "van Osch, Mees"]
[Result "0-1"]
[TimeControl "90'+30''"]
[BlackTitle "FM"]
[WhiteElo "1740"]
[BlackElo "2320"]

1. e4 {[%clk 01:30:56]} {[%emt 00:00:02]} c5 {[%clk 01:30:54]} {[%emt
00:00:07]} 2. Nf3 {[%clk 01:31:09]} {[%emt 00:00:16]} d6 {[%clk 01:30:50]}
{[%emt 00:00:34]} 3. d4 {[%clk 01:31:33]} {[%emt 00:00:06]} cxd4 {[%clk
01:31:18]} {[%emt 00:00:03]} 4. Nxd4 {[%clk 01:31:58]} {[%emt 00:00:05]} Nf6
{[%clk 01:31:45]} {[%emt 00:00:03]} 5. Nc3 {[%clk 01:32:22]} {[%emt 00:00:06]}
a6 {[%clk 01:32:13]} {[%emt 00:00:03]} 6. Bg5 {[%clk 01:32:19]} {[%emt
00:00:33]} e6 {[%clk 01:31:46]} {[%emt 00:00:57]} 7. f4 {[%clk 01:32:44]}
{[%emt 00:00:05]} Qc7 {[%clk 01:29:01]} {[%emt 00:03:16]} 8. Qf3 {[%clk
01:32:41]} {[%emt 00:00:31]} Bd7 {[%clk 01:26:21]} {[%emt 00:03:11]} 9. O-O-O
{[%clk 01:25:54]} {[%emt 00:07:17]} Nc6 {[%clk 01:26:45]} {[%emt 00:00:05]} 10.
f5 {[%clk 01:14:39]} {[%emt 00:11:45]} Ne5 {[%clk 01:21:14]} {[%emt 00:06:01]}
11. Qg3 {[%clk 01:03:46]} {[%emt 00:11:22]} b5 {[%clk 01:20:41]} {[%emt
00:01:04]} 12. Bd3 {[%clk 00:57:26]} {[%emt 00:06:50]} h6 {[%clk 01:10:59]}
{[%emt 00:10:12]} 13. Bxf6 {[%clk 00:52:58]} {[%emt 00:04:57]} gxf6 {[%clk
01:10:01]} {[%emt 00:01:29]} 14. Rhf1 {[%clk 00:51:08]} {[%emt 00:02:19]} b4
{[%clk 01:07:46]} {[%emt 00:02:46]} 15. Nce2 {[%clk 00:51:05]} {[%emt
00:00:33]} Nxd3+ {[%clk 01:07:51]} {[%emt 00:00:25]} 16. Qxd3 {[%clk 00:49:48]}
{[%emt 00:01:47]} e5 {[%clk 01:08:13]} {[%emt 00:00:08]} 17. Nf3 {[%clk
00:46:41]} {[%emt 00:03:35]} Bb5 {[%clk 01:07:53]} {[%emt 00:00:52]} 18. Qe3
{[%clk 00:44:43]} {[%emt 00:02:28]} Qc4 {[%clk 01:07:19]} {[%emt 00:01:05]} 0-1

[Event "Open Gent FIDE-rated 2023"]
[Site "Gent, Belgium"]
[Date "2023.07.15"]
[Round "1.4"]
[White "Bekker, Stefan"]
[Black "Lintner, Felix"]
[Result "1-0"]
[TimeControl "90'+30''"]
[WhiteTitle "FM"]
[WhiteElo "2286"]
[BlackElo "1738"]

1. Nf3 {[%clk 01:30:54]} {[%emt 00:00:05]} d5 {[%clk 01:30:43]} {[%emt
00:00:18]} 2. c4 {[%clk 01:31:14]} {[%emt 00:00:10]} d4 {[%clk 01:28:16]}
{[%emt 00:02:57]} 3. b4 {[%clk 01:31:31]} {[%emt 00:00:13]} Bf5 {[%clk
01:27:37]} {[%emt 00:01:08]} 4. Bb2 {[%clk 01:24:58]} {[%emt 00:07:04]} d3
{[%clk 01:26:27]} {[%emt 00:01:39]} 5. Qa4+ {[%clk 01:21:45]} {[%emt 00:03:43]}
c6 {[%clk 01:20:57]} {[%emt 00:06:00]} 6. Nc3 {[%clk 01:06:16]} {[%emt
00:15:58]} Nf6 {[%clk 01:19:12]} {[%emt 00:02:15]} 7. Ne5 {[%clk 01:02:09]}
{[%emt 00:04:36]} dxe2 {[%clk 01:18:51]} {[%emt 00:00:51]} 8. Bxe2 {[%clk
01:01:06]} {[%emt 00:01:33]} Nbd7 {[%clk 01:16:46]} {[%emt 00:02:34]} 9. d4
{[%clk 00:56:31]} {[%emt 00:05:05]} e6 {[%clk 01:08:23]} {[%emt 00:08:54]} 10.
Nxd7 {[%clk 00:49:19]} {[%emt 00:07:42]} Qxd7 {[%clk 01:07:05]} {[%emt
00:01:48]} 11. Rd1 {[%clk 00:47:57]} {[%emt 00:01:51]} Be7 {[%clk 00:58:42]}
{[%emt 00:08:54]} 12. O-O {[%clk 00:41:52]} {[%emt 00:06:36]} O-O {[%clk
00:59:04]} {[%emt 00:00:08]} 13. Bf3 {[%clk 00:41:27]} {[%emt 00:00:55]} Qc7
{[%clk 00:56:00]} {[%emt 00:03:34]} 14. h3 {[%clk 00:36:05]} {[%emt 00:05:51]}
Rfd8 {[%clk 00:52:59]} {[%emt 00:03:30]} 15. Rfe1 {[%clk 00:35:32]} {[%emt
00:01:04]} a5 {[%clk 00:49:06]} {[%emt 00:04:24]} 16. b5 {[%clk 00:35:13]}
{[%emt 00:00:49]} cxb5 {[%clk 00:36:19]} {[%emt 00:13:17]} 17. Nxb5 {[%clk
00:32:37]} {[%emt 00:03:06]} Qc8 {[%clk 00:26:00]} {[%emt 00:10:49]} 18. Rc1
{[%clk 00:16:16]} {[%emt 00:16:51]} Bb4 {[%clk 00:23:10]} {[%emt 00:03:20]} 19.
Bc3 {[%clk 00:15:24]} {[%emt 00:01:21]} Qxc4 {[%clk 00:18:34]} {[%emt
00:05:06]} 20. Bb2 {[%clk 00:04:51]} {[%emt 00:11:03]} Qd3 {[%clk 00:16:20]}
{[%emt 00:02:43]} 21. Red1 {[%clk 00:05:17]} {[%emt 00:00:04]} Bd2 {[%clk
00:11:44]} {[%emt 00:05:06]} 22. Rc3 {[%clk 00:05:43]} {[%emt 00:00:04]} Bxc3
{[%clk 00:09:56]} {[%emt 00:02:17]} 23. Rxd3 {[%clk 00:06:09]} {[%emt
00:00:05]} Bxb2 {[%clk 00:09:56]} {[%emt 00:00:30]} 24. Rd1 {[%clk 00:04:17]}
{[%emt 00:02:22]} Be4 {[%clk 00:05:37]} {[%emt 00:04:49]} 25. Bxe4 {[%clk
00:04:04]} {[%emt 00:00:43]} Nxe4 {[%clk 00:06:02]} {[%emt 00:00:05]} 26. Qc2
{[%clk 00:04:22]} {[%emt 00:00:11]} 1-0

[Event "Open Gent FIDE-rated 2023"]
[Site "Gent, Belgium"]
[Date "2023.07.15"]
[Round "2.1"]
[White "Ikonnikov, Vyacheslav"]
[Black "Hol, Camile"]
[Result "1-0"]
[TimeControl "90'+30''"]
[WhiteTitle "GM"]
[WhiteElo "2467"]
[BlackElo "1964"]

1. d4 {[%clk 01:30:55]} {[%emt 00:00:03]} d5 {[%clk 01:30:47]} {[%emt
00:00:14]} 2. c4 {[%clk 01:31:09]} {[%emt 00:00:16]} e6 {[%clk 01:31:01]}
{[%emt 00:00:17]} 3. Nf3 {[%clk 01:31:06]} {[%emt 00:00:32]} Nf6 {[%clk
01:31:02]} {[%emt 00:00:28]} 4. Nc3 {[%clk 01:31:30]} {[%emt 00:00:06]} Be7
{[%clk 01:30:37]} {[%emt 00:00:55]} 5. Bg5 {[%clk 01:31:44]} {[%emt 00:00:17]}
O-O {[%clk 01:29:54]} {[%emt 00:01:12]} 6. e3 {[%clk 01:30:17]} {[%emt
00:01:57]} b6 {[%clk 01:27:00]} {[%emt 00:03:24]} 7. Rc1 {[%clk 01:29:20]}
{[%emt 00:01:27]} Bb7 {[%clk 01:26:31]} {[%emt 00:01:00]} 8. Bxf6 {[%clk
01:29:25]} {[%emt 00:00:25]} Bxf6 {[%clk 01:26:38]} {[%emt 00:00:23]} 9. cxd5
{[%clk 01:29:41]} {[%emt 00:00:14]} exd5 {[%clk 01:25:39]} {[%emt 00:01:29]} 10.
Bd3 {[%clk 01:27:26]} {[%emt 00:02:45]} Re8 {[%clk 01:21:53]} {[%emt 00:04:16]}
11. O-O {[%clk 01:26:48]} {[%emt 00:01:07]} c6 {[%clk 01:10:13]} {[%emt
00:12:10]} 12. b4 {[%clk 01:23:17]} {[%emt 00:04:01]} Nd7 {[%clk 01:04:47]}
{[%emt 00:05:56]} 13. Qb3 {[%clk 01:23:19]} {[%emt 00:00:28]} Nf8 {[%clk
00:58:26]} {[%emt 00:06:51]} 14. Na4 {[%clk 01:18:32]} {[%emt 00:05:16]} Ne6
{[%clk 00:55:20]} {[%emt 00:03:36]} 15. b5 {[%clk 01:17:34]} {[%emt 00:01:29]}
Qd7 {[%clk 00:51:40]} {[%emt 00:04:10]} 16. Bxh7+ {[%clk 01:13:15]} {[%emt
00:04:48]} Kxh7 {[%clk 00:51:35]} {[%emt 00:00:35]} 17. bxc6 {[%clk 01:13:24]}
{[%emt 00:00:21]} Qc7 {[%clk 00:48:57]} {[%emt 00:03:08]} 18. cxb7 {[%clk
01:12:34]} {[%emt 00:01:20]} Qxb7 {[%clk 00:49:25]} {[%emt 00:00:02]} 19. Qc2+
{[%clk 01:08:58]} {[%emt 00:04:05]} Kg8 {[%clk 00:48:50]} {[%emt 00:01:06]} 20.
Qc6 {[%clk 01:09:22]} {[%emt 00:00:05]} Qa6 {[%clk 00:48:10]} {[%emt 00:01:11]}
21. Nc3 {[%clk 01:05:38]} {[%emt 00:04:14]} Red8 {[%clk 00:45:49]} {[%emt
00:02:52]} 22. Nxd5 {[%clk 00:50:13]} {[%emt 00:15:55]} Qxa2 {[%clk 00:44:47]}
{[%emt 00:01:32]} 23. Nc3 {[%clk 00:45:04]} {[%emt 00:05:38]} Qa3 {[%clk
00:41:56]} {[%emt 00:03:20]} 24. Ra1 {[%clk 00:44:59]} {[%emt 00:00:36]} Qd6
{[%clk 00:39:21]} {[%emt 00:03:06]} 25. Qxd6 {[%clk 00:43:06]} {[%emt
00:02:23]} Rxd6 {[%clk 00:39:50]} {[%emt 00:00:01]} 26. Nb5 {[%clk 00:43:06]}
{[%emt 00:00:30]} Rd7 {[%clk 00:38:48]} {[%emt 00:01:31]} 27. Ra6 {[%clk
00:42:56]} {[%emt 00:00:39]} Rd5 {[%clk 00:24:55]} {[%emt 00:14:24]} 28. Rxa7
{[%clk 00:37:17]} {[%emt 00:06:09]} Rc8 {[%clk 00:24:16]} {[%emt 00:01:09]} 29.
Na3 {[%clk 00:37:40]} {[%emt 00:00:07]} Rb8 {[%clk 00:23:39]} {[%emt 00:01:07]}
30. Rb1 {[%clk 00:36:55]} {[%emt 00:01:14]} Bd8 {[%clk 00:23:42]} {[%emt
00:00:28]} 31. Nb5 {[%clk 00:36:14]} {[%emt 00:01:10]} f6 {[%clk 00:22:08]}
{[%emt 00:02:04]} 32. h4 {[%clk 00:35:17]} {[%emt 00:01:27]} f5 {[%clk
00:21:38]} {[%emt 00:01:01]} 33. g3 {[%clk 00:35:24]} {[%emt 00:00:22]} Bf6
{[%clk 00:21:13]} {[%emt 00:00:55]} 34. Nc3 {[%clk 00:33:52]} {[%emt 00:02:02]}
Rd6 {[%clk 00:20:21]} {[%emt 00:01:24]} 35. Rb5 {[%clk 00:33:59]} {[%emt
00:00:23]} g6 {[%clk 00:20:29]} {[%emt 00:00:22]} 36. Nd5 {[%clk 00:34:08]}
{[%emt 00:00:19]} Bd8 {[%clk 00:20:26]} {[%emt 00:00:34]} 37. Ne5 {[%clk
00:33:38]} {[%emt 00:01:00]} Nf8 {[%clk 00:18:37]} {[%emt 00:02:19]} 38. Kg2
{[%clk 00:31:54]} {[%emt 00:02:14]} g5 {[%clk 00:18:25]} {[%emt 00:00:43]} 39.
hxg5 {[%clk 00:31:33]} {[%emt 00:00:51]} Bxg5 {[%clk 00:18:47]} {[%emt
00:00:08]} 40. Nf7 {[%clk 00:31:35]} {[%emt 00:00:28]} 1-0

[Event "Open Gent FIDE-rated 2023"]
[Site "Gent, Belgium"]
[Date "2023.07.15"]
[Round "2.2"]
[White "Maes, Tibo"]
[Black "Goudriaan, Etienne"]
[Result "0-1"]
[TimeControl "90'+30''"]
[BlackTitle "IM"]
[WhiteElo "1964"]
[BlackElo "2322"]

1. e4 {[%clk 01:30:55]} {[%emt 00:00:04]} c6 {[%clk 01:30:55]} {[%emt
00:00:06]} 2. d4 {[%clk 01:30:34]} {[%emt 00:00:51]} d5 {[%clk 01:31:20]}
{[%emt 00:00:06]} 3. Nd2 {[%clk 01:30:30]} {[%emt 00:00:34]} dxe4 {[%clk
01:31:35]} {[%emt 00:00:15]} 4. Nxe4 {[%clk 01:30:54]} {[%emt 00:00:06]} Nf6
{[%clk 01:32:02]} {[%emt 00:00:03]} 5. Nxf6+ {[%clk 01:30:47]} {[%emt
00:00:37]} exf6 {[%clk 01:32:27]} {[%emt 00:00:04]} 6. c3 {[%clk 01:28:58]}
{[%emt 00:02:19]} Bd6 {[%clk 01:32:51]} {[%emt 00:00:06]} 7. Bd3 {[%clk
01:28:31]} {[%emt 00:00:57]} O-O {[%clk 01:33:14]} {[%emt 00:00:07]} 8. Qc2
{[%clk 01:27:21]} {[%emt 00:01:40]} Re8+ {[%clk 01:33:05]} {[%emt 00:00:40]} 9.
Ne2 {[%clk 01:27:45]} {[%emt 00:00:06]} h5 {[%clk 01:33:30]} {[%emt 00:00:05]}
10. O-O {[%clk 01:27:01]} {[%emt 00:01:13]} h4 {[%clk 01:31:04]} {[%emt
00:02:56]} 11. h3 {[%clk 01:22:57]} {[%emt 00:04:34]} Nd7 {[%clk 01:25:37]}
{[%emt 00:05:57]} 12. Bd2 {[%clk 01:21:17]} {[%emt 00:02:10]} Nf8 {[%clk
01:25:38]} {[%emt 00:00:29]} 13. Rae1 {[%clk 01:20:26]} {[%emt 00:01:20]} g6
{[%clk 01:24:34]} {[%emt 00:01:35]} 14. f4 {[%clk 01:14:03]} {[%emt 00:06:54]}
f5 {[%clk 01:24:10]} {[%emt 00:00:54]} 15. c4 {[%clk 01:08:53]} {[%emt
00:05:40]} Nh7 {[%clk 01:17:27]} {[%emt 00:07:13]} 16. b4 {[%clk 00:58:39]}
{[%emt 00:10:43]} Nf6 {[%clk 01:15:28]} {[%emt 00:02:29]} 17. b5 {[%clk
00:47:58]} {[%emt 00:11:12]} cxb5 {[%clk 01:13:00]} {[%emt 00:02:57]} 18. c5
{[%clk 00:47:00]} {[%emt 00:01:28]} Bc7 {[%clk 01:10:51]} {[%emt 00:02:39]} 19.
Bxb5 {[%clk 00:47:07]} {[%emt 00:00:23]} Bd7 {[%clk 01:11:16]} {[%emt
00:00:05]} 20. Bxd7 {[%clk 00:39:32]} {[%emt 00:08:05]} Qxd7 {[%clk 01:11:27]}
{[%emt 00:00:19]} 21. Qc4 {[%clk 00:38:57]} {[%emt 00:01:06]} Re4 {[%clk
01:10:12]} {[%emt 00:01:45]} 22. Rb1 {[%clk 00:28:54]} {[%emt 00:10:32]} Rae8
{[%clk 01:09:23]} {[%emt 00:01:19]} 23. Rf2 {[%clk 00:27:52]} {[%emt 00:01:32]}
b6 {[%clk 01:08:10]} {[%emt 00:01:43]} 24. c6 {[%clk 00:17:41]} {[%emt
00:10:41]} Qe6 {[%clk 01:07:20]} {[%emt 00:01:19]} 25. Qxe6 {[%clk 00:16:56]}
{[%emt 00:01:14]} R4xe6 {[%clk 01:07:36]} {[%emt 00:00:15]} 26. Nc3 {[%clk
00:11:06]} {[%emt 00:06:20]} Rxc6 {[%clk 01:07:41]} {[%emt 00:00:25]} 27. d5
{[%clk 00:08:28]} {[%emt 00:03:09]} Rc5 {[%clk 01:06:26]} {[%emt 00:01:44]} 28.
Rc1 {[%clk 00:05:51]} {[%emt 00:03:07]} b5 {[%clk 01:05:07]} {[%emt 00:01:49]}
29. Rff1 {[%clk 00:04:05]} {[%emt 00:02:16]} Bb6 {[%clk 01:04:52]} {[%emt
00:00:45]} 30. Kh2 {[%clk 00:02:53]} {[%emt 00:01:41]} Nxd5 {[%clk 01:04:21]}
{[%emt 00:01:02]} 0-1

[Event "Open Gent FIDE-rated 2023"]
[Site "Gent, Belgium"]
[Date "2023.07.15"]
[Round "2.3"]
[White "van Osch, Mees"]
[Black "Vandenhole, Kobe"]
[Result "1-0"]
[TimeControl "90'+30''"]
[WhiteTitle "FM"]
[WhiteElo "2320"]
[BlackElo "1956"]

1. e4 {[%clk 01:30:59]} {[%emt 00:08:15]} e6 {[%clk 01:30:11]} {[%emt
00:00:51]} 2. d4 {[%clk 01:31:26]} {[%emt 00:00:04]} d5 {[%clk 01:29:51]}
{[%emt 00:00:49]} 3. Nc3 {[%clk 01:31:51]} {[%emt 00:00:04]} a6 {[%clk
01:30:17]} {[%emt 00:00:04]} 4. Be3 {[%clk 01:30:45]} {[%emt 00:01:36]} Nf6
{[%clk 01:30:04]} {[%emt 00:00:42]} 5. e5 {[%clk 01:31:05]} {[%emt 00:00:11]}
Nfd7 {[%clk 01:30:14]} {[%emt 00:00:20]} 6. f4 {[%clk 01:31:31]} {[%emt
00:00:05]} b5 {[%clk 01:24:51]} {[%emt 00:05:53]} 7. Nf3 {[%clk 01:26:48]}
{[%emt 00:05:12]} b4 {[%clk 01:20:01]} {[%emt 00:05:21]} 8. Ne2 {[%clk
01:27:13]} {[%emt 00:00:05]} Bb7 {[%clk 01:20:11]} {[%emt 00:00:21]} 9. g4
{[%clk 01:27:27]} {[%emt 00:00:14]} h5 {[%clk 01:19:21]} {[%emt 00:01:20]} 10.
gxh5 {[%clk 01:27:53]} {[%emt 00:00:04]} Nb6 {[%clk 01:10:02]} {[%emt
00:09:50]} 11. b3 {[%clk 01:27:15]} {[%emt 00:01:07]} N8d7 {[%clk 01:08:14]}
{[%emt 00:02:17]} 12. Ng3 {[%clk 01:26:35]} {[%emt 00:01:10]} c5 {[%clk
01:08:20]} {[%emt 00:00:24]} 13. f5 {[%clk 01:26:13]} {[%emt 00:00:52]} exf5
{[%clk 01:07:31]} {[%emt 00:01:20]} 14. Nxf5 {[%clk 01:20:49]} {[%emt
00:05:54]} Rxh5 {[%clk 01:04:30]} {[%emt 00:03:31]} 15. Bd3 {[%clk 01:14:06]}
{[%emt 00:07:13]} Qc7 {[%clk 00:55:30]} {[%emt 00:09:30]} 16. Ng5 {[%clk
01:08:03]} {[%emt 00:06:32]} cxd4 {[%clk 00:37:09]} {[%emt 00:18:52]} 17. Qxh5
{[%clk 01:05:33]} {[%emt 00:03:00]} g6 {[%clk 00:32:35]} {[%emt 00:05:04]} 18.
Qh7 {[%clk 01:04:56]} {[%emt 00:01:07]} Qc3+ {[%clk 00:25:27]} {[%emt
00:07:38]} 19. Ke2 {[%clk 01:05:15]} {[%emt 00:00:10]} dxe3 {[%clk 00:25:25]}
{[%emt 00:00:33]} 20. Qxf7+ {[%clk 01:05:38]} {[%emt 00:00:08]} Kd8 {[%clk
00:25:47]} {[%emt 00:00:07]} 21. Ne6+ {[%clk 01:06:02]} {[%emt 00:00:06]} Kc8
{[%clk 00:25:45]} {[%emt 00:00:31]} 22. Qe8# {[%emt 00:00:05]} 1-0